[Event "*** Titled Tuesday Blitz"]
[Site "Chess.com"]
[Date "2020.05.26"]
[Round "8"]
[White "kleopl"]
[Black "Mbneu"]
[Result "1-0"]
[WhiteElo "2436"]
[BlackElo "2234"]
[TimeControl "180+1"]
[EndTime "11:41:00 PDT"]
[Termination "kleopl won by resignation"]

1. c4 {[%clk 0:03:00.9]} 1... Nf6 {[%clk 0:01:48.3]} 2. Nc3 {[%clk 0:02:59.7]}
2... e6 {[%clk 0:01:47.6]} 3. Nf3 {[%clk 0:02:57.1]} 3... c5 {[%clk 0:01:47.2]}
4. g3 {[%clk 0:02:51.9]} 4... d5 {[%clk 0:01:47]} 5. cxd5 {[%clk 0:02:51.7]}
5... exd5 {[%clk 0:01:47.9]} 6. d4 {[%clk 0:02:52.1]} 6... Nc6 {[%clk
0:01:48.3]} 7. Bg2 {[%clk 0:02:51.7]} 7... Be7 {[%clk 0:01:49]} 8. O-O {[%clk
0:02:51.5]} 8... O-O {[%clk 0:01:49.5]} 9. b3 {[%clk 0:02:49.7]} 9... Ne4 {[%clk
0:01:48.4]} 10. Bb2 {[%clk 0:02:48.4]} 10... Bf6 {[%clk 0:01:48.4]} 11. e3
{[%clk 0:02:37.1]} 11... cxd4 {[%clk 0:01:44.5]} 12. Nxd4 {[%clk 0:02:36.7]}
12... Nxd4 {[%clk 0:01:44.5]} 13. exd4 {[%clk 0:02:15.1]} 13... Nxc3 {[%clk
0:01:33.9]} 14. Bxc3 {[%clk 0:02:16]} 14... Bf5 {[%clk 0:01:33]} 15. Re1 {[%clk
0:02:11.1]} 15... Rc8 {[%clk 0:01:25]} 16. Bb4 {[%clk 0:02:09.9]} 16... Re8
{[%clk 0:01:23.1]} 17. Rxe8+ {[%clk 0:02:08.7]} 17... Qxe8 {[%clk 0:01:23]} 18.
Bxd5 {[%clk 0:02:00.9]} 18... Be4 {[%clk 0:01:20.7]} 19. Bc4 {[%clk 0:01:53.6]}
19... h5 {[%clk 0:01:13.9]} 20. Qxh5 {[%clk 0:01:42.2]} 20... Bxd4 {[%clk
0:01:12.9]} 21. Re1 {[%clk 0:01:39.4]} 21... g6 {[%clk 0:00:54.4]} 22. Qg4
{[%clk 0:01:36]} 22... Rxc4 {[%clk 0:00:27.5]} 23. bxc4 {[%clk 0:01:21.4]} 23...
f5 {[%clk 0:00:27.2]} 24. Qd1 {[%clk 0:01:15.9]} 24... Qe5 {[%clk 0:00:23.7]}
25. Bd2 {[%clk 0:01:01.2]} 25... Qc5 {[%clk 0:00:16.6]} 26. Be3 {[%clk
0:01:00.3]} 26... Bxe3 {[%clk 0:00:16.8]} 27. Rxe3 {[%clk 0:00:59.5]} 27... Qxc4
{[%clk 0:00:17.4]} 28. Qb3 {[%clk 0:00:59.6]} 28... Qxb3 {[%clk 0:00:16.3]} 29.
Rxb3 {[%clk 0:00:59.1]} 29... Kf7 {[%clk 0:00:15.2]} 30. Ra3 {[%clk 0:00:57.2]}
30... a6 {[%clk 0:00:14.7]} 31. Rb3 {[%clk 0:00:57.5]} 31... Ke6 {[%clk
0:00:14.6]} 32. Rb6+ {[%clk 0:00:57.5]} 32... Ke5 {[%clk 0:00:13.4]} 33. Rxg6
{[%clk 0:00:55.4]} 33... a5 {[%clk 0:00:13.8]} 34. Rb6 {[%clk 0:00:54.1]} 34...
Kd4 {[%clk 0:00:11.2]} 35. h4 {[%clk 0:00:53.9]} 35... Kc5 {[%clk 0:00:11]} 36.
Rb2 {[%clk 0:00:53]} 36... b5 {[%clk 0:00:11]} 37. h5 {[%clk 0:00:52.8]} 37...
b4 {[%clk 0:00:10.1]} 38. Re2 {[%clk 0:00:46.1]} 38... Bd5 {[%clk 0:00:08.3]}
39. h6 {[%clk 0:00:39.1]} 39... Bg8 {[%clk 0:00:06.3]} 40. Re8 {[%clk
0:00:39.1]} 40... Bh7 {[%clk 0:00:05.8]} 41. Re7 {[%clk 0:00:38.5]} 41... Bg6
{[%clk 0:00:05.9]} 42. h7 {[%clk 0:00:35.4]} 42... Bxh7 {[%clk 0:00:05.3]} 43.
Rxh7 {[%clk 0:00:36.3]} 43... a4 {[%clk 0:00:05.8]} 44. Rf7 {[%clk 0:00:33.8]}
44... b3 {[%clk 0:00:05]} 45. Rxf5+ {[%clk 0:00:33.3]} 45... Kb4 {[%clk
0:00:04.5]} 46. axb3 {[%clk 0:00:32.8]} 46... a3 {[%clk 0:00:04.9]} 47. Rf8
{[%clk 0:00:31.3]} 1-0

[Event "*** Titled Tuesday Blitz"]
[Site "Chess.com"]
[Date "2020.05.26"]
[Round "8"]
[White "Koksik_13"]
[Black "Zurability"]
[Result "1-0"]
[WhiteElo "2577"]
[BlackElo "2702"]
[TimeControl "180+1"]
[EndTime "11:41:01 PDT"]
[Termination "Koksik_13 won on time"]

1. d4 {[%clk 0:03:00.9]} 1... Nf6 {[%clk 0:02:59.8]} 2. Nc3 {[%clk 0:03:00.9]}
2... d5 {[%clk 0:02:57.5]} 3. Bf4 {[%clk 0:03:01.3]} 3... e6 {[%clk 0:02:51.5]}
4. Nb5 {[%clk 0:03:00.8]} 4... Na6 {[%clk 0:02:51.5]} 5. e3 {[%clk 0:03:00.7]}
5... Be7 {[%clk 0:02:40]} 6. Nf3 {[%clk 0:02:59.8]} 6... O-O {[%clk 0:02:39.4]}
7. h3 {[%clk 0:02:59.7]} 7... c6 {[%clk 0:02:31.6]} 8. Nc3 {[%clk 0:02:59.4]}
8... c5 {[%clk 0:02:31.9]} 9. Bxa6 {[%clk 0:02:59.8]} 9... bxa6 {[%clk
0:02:31.9]} 10. O-O {[%clk 0:03:00.7]} 10... a5 {[%clk 0:02:30.8]} 11. Ne5
{[%clk 0:03:00.6]} 11... Qe8 {[%clk 0:02:24]} 12. Re1 {[%clk 0:02:50.6]} 12...
Bb7 {[%clk 0:02:16.8]} 13. Qf3 {[%clk 0:02:46]} 13... Ne4 {[%clk 0:02:11.9]} 14.
Nxe4 {[%clk 0:02:40.7]} 14... dxe4 {[%clk 0:02:12.8]} 15. Qg3 {[%clk 0:02:41.1]}
15... Kh8 {[%clk 0:02:03.8]} 16. Nc4 {[%clk 0:02:36.3]} 16... cxd4 {[%clk
0:02:01.3]} 17. Be5 {[%clk 0:02:33.2]} 17... f6 {[%clk 0:01:58.4]} 18. Bxd4
{[%clk 0:02:31.9]} 18... e5 {[%clk 0:01:55.3]} 19. Bc3 {[%clk 0:02:24.9]} 19...
a4 {[%clk 0:01:53.5]} 20. Rad1 {[%clk 0:02:22]} 20... Rc8 {[%clk 0:01:47.4]} 21.
Nd6 {[%clk 0:02:02.9]} 21... Bxd6 {[%clk 0:01:47.4]} 22. Rxd6 {[%clk 0:02:03.8]}
22... a3 {[%clk 0:01:47.8]} 23. Red1 {[%clk 0:02:04.2]} 23... axb2 {[%clk
0:01:23]} 24. Bxb2 {[%clk 0:02:05.1]} 24... Rf7 {[%clk 0:01:21.3]} 25. Qg4
{[%clk 0:01:48.6]} 25... Bc6 {[%clk 0:00:54.8]} 26. Ba3 {[%clk 0:01:43.1]} 26...
h6 {[%clk 0:00:47.2]} 27. Qg6 {[%clk 0:01:35.8]} 27... Rfc7 {[%clk 0:00:44.1]}
28. Qf5 {[%clk 0:01:21]} 28... Ba4 {[%clk 0:00:42.3]} 29. Kh2 {[%clk 0:00:55.3]}
29... Bxc2 {[%clk 0:00:36.8]} 30. R1d2 {[%clk 0:00:54.1]} 30... Ba4 {[%clk
0:00:36.1]} 31. Bb4 {[%clk 0:00:49.5]} 31... Rc6 {[%clk 0:00:11.6]} 32. R6d5
{[%clk 0:00:37.2]} 32... Bc2 {[%clk 0:00:09.1]} 33. Ba5 {[%clk 0:00:35.4]} 33...
Bd3 {[%clk 0:00:09.4]} 34. Rb2 {[%clk 0:00:33.5]} 34... Rc5 {[%clk 0:00:07.2]}
35. Rd7 {[%clk 0:00:14]} 35... Rxa5 {[%clk 0:00:02.4]} 36. Rxg7 {[%clk
0:00:10.9]} 36... Kxg7 {[%clk 0:00:02.3]} 37. Rb7+ {[%clk 0:00:11]} 37... Qf7
{[%clk 0:00:01.1]} 38. Qg4+ {[%clk 0:00:10.4]} 1-0

[Event "*** Titled Tuesday Blitz"]
[Site "Chess.com"]
[Date "2020.05.26"]
[Round "8"]
[White "RATNAKARAN"]
[Black "WeAintSurePal"]
[Result "0-1"]
[WhiteElo "2531"]
[BlackElo "2356"]
[TimeControl "180+1"]
[EndTime "11:41:02 PDT"]
[Termination "WeAintSurePal won by resignation"]

1. e4 {[%clk 0:03:00.9]} 1... d5 {[%clk 0:02:58.5]} 2. exd5 {[%clk 0:03:00.6]}
2... Qxd5 {[%clk 0:02:59.4]} 3. Nc3 {[%clk 0:03:00.2]} 3... Qd8 {[%clk
0:02:59.4]} 4. Bc4 {[%clk 0:02:59.7]} 4... Nf6 {[%clk 0:02:58.8]} 5. d4 {[%clk
0:02:58.7]} 5... a6 {[%clk 0:02:56.9]} 6. a4 {[%clk 0:02:58.3]} 6... e6 {[%clk
0:02:53.1]} 7. Nf3 {[%clk 0:02:57.6]} 7... Bb4 {[%clk 0:02:44.4]} 8. O-O {[%clk
0:02:57.2]} 8... O-O {[%clk 0:02:39.8]} 9. Ne2 {[%clk 0:02:56.8]} 9... Bd7
{[%clk 0:02:34.8]} 10. Ng3 {[%clk 0:02:55.7]} 10... Bc6 {[%clk 0:02:34.3]} 11.
Ne5 {[%clk 0:02:55.9]} 11... Bd6 {[%clk 0:02:31.3]} 12. Bg5 {[%clk 0:02:53.9]}
12... h6 {[%clk 0:02:27.8]} 13. Nxc6 {[%clk 0:02:51]} 13... Nxc6 {[%clk
0:02:22.7]} 14. Be3 {[%clk 0:02:51]} 14... Nd5 {[%clk 0:02:21.7]} 15. Bd2 {[%clk
0:02:50.9]} 15... Nxd4 {[%clk 0:02:11.6]} 16. Bxd5 {[%clk 0:02:47.3]} 16... exd5
{[%clk 0:02:11.3]} 17. Bxh6 {[%clk 0:02:46.5]} 17... Qh4 {[%clk 0:01:57.4]} 18.
Bxg7 {[%clk 0:02:41.5]} 18... Kxg7 {[%clk 0:01:39.7]} 19. Qxd4+ {[%clk
0:02:39.6]} 19... Qxd4 {[%clk 0:01:35.4]} 20. Nf5+ {[%clk 0:02:39.6]} 20... Kf6
{[%clk 0:01:36.3]} 21. Nxd4 {[%clk 0:02:40.5]} 21... Rh8 {[%clk 0:01:34]} 22. g3
{[%clk 0:02:38.7]} 22... Rh5 {[%clk 0:01:32]} 23. Kg2 {[%clk 0:02:37.2]} 23...
Rah8 {[%clk 0:01:32.1]} 24. h4 {[%clk 0:02:36.7]} 24... Rg8 {[%clk 0:01:30.8]}
25. Nf3 {[%clk 0:02:33.6]} 25... c6 {[%clk 0:01:30.1]} 26. a5 {[%clk 0:02:31.5]}
26... Bc7 {[%clk 0:01:27.6]} 27. Ra4 {[%clk 0:02:30.5]} 27... c5 {[%clk
0:01:24.4]} 28. g4 {[%clk 0:02:25.3]} 28... Rhh8 {[%clk 0:01:19.4]} 29. Re1
{[%clk 0:02:21.4]} 29... d4 {[%clk 0:01:13.8]} 30. Kh3 {[%clk 0:02:19.1]} 30...
Re8 {[%clk 0:01:10]} 31. Raa1 {[%clk 0:02:16.4]} 31... Rxe1 {[%clk 0:01:07.1]}
32. Rxe1 {[%clk 0:02:15.8]} 32... Bxa5 {[%clk 0:01:06.2]} 33. g5+ {[%clk
0:02:15.9]} 33... Kg7 {[%clk 0:01:04.9]} 34. Re7 {[%clk 0:02:15.8]} 34... b5
{[%clk 0:00:58.2]} 35. Ne5 {[%clk 0:02:15]} 35... Rf8 {[%clk 0:00:56.8]} 36. h5
{[%clk 0:02:14.8]} 36... Bd8 {[%clk 0:00:53.4]} 37. h6+ {[%clk 0:02:14.7]} 37...
Kg8 {[%clk 0:00:50.7]} 38. h7+ {[%clk 0:01:53.8]} 38... Kxh7 {[%clk 0:00:42.4]}
39. Rxf7+ {[%clk 0:01:54.4]} 39... Rxf7 {[%clk 0:00:37.2]} 40. Nxf7 {[%clk
0:01:54.6]} 40... Bc7 {[%clk 0:00:35.2]} 41. Kg4 {[%clk 0:01:54.4]} 41... Kg6
{[%clk 0:00:32.8]} 42. Nh6 {[%clk 0:01:51.9]} 42... c4 {[%clk 0:00:30.1]} 43. f4
{[%clk 0:01:51.1]} 43... a5 {[%clk 0:00:23.4]} 44. Nf5 {[%clk 0:01:47.6]} 44...
c3 {[%clk 0:00:18.2]} 45. bxc3 {[%clk 0:01:42]} 45... dxc3 {[%clk 0:00:17.2]}
46. Nd4 {[%clk 0:01:40.6]} 46... b4 {[%clk 0:00:15.8]} 47. f5+ {[%clk
0:01:41.5]} 47... Kg7 {[%clk 0:00:14.9]} 48. Ne6+ {[%clk 0:01:41]} 48... Kg8
{[%clk 0:00:14.5]} 49. Nxc7 {[%clk 0:01:33]} 49... b3 {[%clk 0:00:14.1]} 50. f6
{[%clk 0:01:31.6]} 50... bxc2 {[%clk 0:00:12.3]} 51. g6 {[%clk 0:01:31.8]} 51...
c1=Q {[%clk 0:00:09.7]} 52. f7+ {[%clk 0:01:32.7]} 52... Kg7 {[%clk 0:00:09.8]}
53. Ne6+ {[%clk 0:01:32.9]} 53... Kxg6 {[%clk 0:00:09.8]} 54. f8=Q {[%clk
0:01:32.5]} 54... Qg1+ {[%clk 0:00:08.5]} 55. Kh3 {[%clk 0:01:31.9]} 55... Qh1+
{[%clk 0:00:08]} 56. Kg3 {[%clk 0:01:32.3]} 56... Qe1+ {[%clk 0:00:06.8]} 57.
Kg2 {[%clk 0:01:28.6]} 57... Qe4+ {[%clk 0:00:06.4]} 58. Kf2 {[%clk 0:01:26.6]}
58... Qxe6 {[%clk 0:00:06.5]} 59. Qa3 {[%clk 0:01:22.9]} 59... Qf5+ {[%clk
0:00:06.3]} 60. Ke2 {[%clk 0:01:22.5]} 60... Qe4+ {[%clk 0:00:06.5]} 61. Kd1
{[%clk 0:01:19.7]} 61... Qd3+ {[%clk 0:00:06.4]} 62. Kc1 {[%clk 0:01:18.7]}
62... Qd2+ {[%clk 0:00:06.4]} 63. Kb1 {[%clk 0:01:19.2]} 63... c2+ {[%clk
0:00:06.7]} 0-1

[Event "*** Titled Tuesday Blitz"]
[Site "Chess.com"]
[Date "2020.05.26"]
[Round "8"]
[White "Jungle_Jaguar"]
[Black "atalz0"]
[Result "1-0"]
[WhiteElo "2567"]
[BlackElo "2330"]
[TimeControl "180+1"]
[EndTime "11:41:02 PDT"]
[Termination "Jungle_Jaguar won on time"]

1. e4 {[%clk 0:03:00.9]} 1... d5 {[%clk 0:02:59.7]} 2. exd5 {[%clk 0:03:00.6]}
2... Nf6 {[%clk 0:03:00.2]} 3. Bb5+ {[%clk 0:02:58.9]} 3... Bd7 {[%clk
0:02:59.9]} 4. Bc4 {[%clk 0:02:58.9]} 4... Bg4 {[%clk 0:02:59.9]} 5. f3 {[%clk
0:02:59.2]} 5... Bc8 {[%clk 0:03:00.5]} 6. Nc3 {[%clk 0:02:58.4]} 6... Nbd7
{[%clk 0:03:01.1]} 7. Bb3 {[%clk 0:02:42.9]} 7... Nb6 {[%clk 0:02:59.8]} 8. d4
{[%clk 0:02:43.4]} 8... Nbxd5 {[%clk 0:02:58.2]} 9. Nge2 {[%clk 0:02:42.9]} 9...
e6 {[%clk 0:02:57.3]} 10. Bg5 {[%clk 0:02:40.6]} 10... Be7 {[%clk 0:02:57.1]}
11. Qd2 {[%clk 0:02:39.7]} 11... O-O {[%clk 0:02:54.8]} 12. O-O-O {[%clk
0:02:36.4]} 12... a5 {[%clk 0:02:41.3]} 13. a4 {[%clk 0:02:28.5]} 13... c6
{[%clk 0:02:39.5]} 14. h4 {[%clk 0:02:18]} 14... b5 {[%clk 0:02:38.5]} 15. Bxd5
{[%clk 0:02:08.3]} 15... Nxd5 {[%clk 0:02:28.2]} 16. Nxd5 {[%clk 0:02:06.8]}
16... exd5 {[%clk 0:02:16.9]} 17. axb5 {[%clk 0:02:07]} 17... cxb5 {[%clk
0:02:16.1]} 18. Rde1 {[%clk 0:02:04.3]} 18... Ra7 {[%clk 0:02:02.8]} 19. Kb1
{[%clk 0:01:46.8]} 19... a4 {[%clk 0:01:54.8]} 20. Nf4 {[%clk 0:01:46.1]} 20...
f6 {[%clk 0:01:23.6]} 21. Bh6 {[%clk 0:01:34.7]} 21... gxh6 {[%clk 0:01:20.2]}
22. Nh5 {[%clk 0:01:34.6]} 22... Bd6 {[%clk 0:00:58.6]} 23. g4 {[%clk
0:01:23.7]} 23... b4 {[%clk 0:00:46.2]} 24. g5 {[%clk 0:01:11.9]} 24... fxg5
{[%clk 0:00:33.5]} 25. hxg5 {[%clk 0:01:12.3]} 25... hxg5 {[%clk 0:00:33.9]} 26.
Reg1 {[%clk 0:01:12.6]} 26... h6 {[%clk 0:00:33.5]} 27. f4 {[%clk 0:01:10.2]}
27... g4 {[%clk 0:00:23.5]} 28. f5 {[%clk 0:01:02.8]} 28... Bxf5 {[%clk
0:00:20.9]} 29. Qxh6 {[%clk 0:00:59.2]} 29... b3 {[%clk 0:00:17]} 30. Rxg4+
{[%clk 0:00:45.1]} 30... Kf7 {[%clk 0:00:03.9]} 31. Rg7+ {[%clk 0:00:13.5]}
31... Ke8 {[%clk 0:00:04.1]} 32. Re1+ {[%clk 0:00:13.7]} 32... Be4 {[%clk
0:00:02.6]} 33. Qg6+ {[%clk 0:00:09.1]} 33... Raf7 {[%clk 0:00:01.7]} 34. Rg8
{[%clk 0:00:04.1]} 1-0

[Event "*** Titled Tuesday Blitz"]
[Site "Chess.com"]
[Date "2020.05.26"]
[Round "8"]
[White "CroissantNeuf"]
[Black "MightyGMpretender"]
[Result "0-1"]
[WhiteElo "2365"]
[BlackElo "2551"]
[TimeControl "180+1"]
[EndTime "11:41:03 PDT"]
[Termination "MightyGMpretender won on time"]

1. e4 {[%clk 0:03:00.9]} 1... c5 {[%clk 0:02:58.4]} 2. Nf3 {[%clk 0:03:00.5]}
2... d6 {[%clk 0:02:59.1]} 3. Bb5+ {[%clk 0:03:00]} 3... Nd7 {[%clk 0:02:54.2]}
4. Ba4 {[%clk 0:02:59.8]} 4... g6 {[%clk 0:02:44.5]} 5. O-O {[%clk 0:02:58.9]}
5... Bg7 {[%clk 0:02:44.7]} 6. c3 {[%clk 0:02:58.3]} 6... Nf6 {[%clk 0:02:44.3]}
7. Re1 {[%clk 0:02:56.2]} 7... O-O {[%clk 0:02:43.8]} 8. d4 {[%clk 0:02:55.4]}
8... cxd4 {[%clk 0:02:42.3]} 9. cxd4 {[%clk 0:02:55]} 9... Nb6 {[%clk
0:02:36.9]} 10. Bb3 {[%clk 0:02:48.8]} 10... d5 {[%clk 0:02:30.2]} 11. e5 {[%clk
0:02:47.6]} 11... Ne4 {[%clk 0:02:29.8]} 12. Nbd2 {[%clk 0:02:45.9]} 12... Nxd2
{[%clk 0:02:24.2]} 13. Bxd2 {[%clk 0:02:45]} 13... Bg4 {[%clk 0:02:22.8]} 14. h3
{[%clk 0:02:43.6]} 14... Bxf3 {[%clk 0:02:22.5]} 15. Qxf3 {[%clk 0:02:44.5]}
15... e6 {[%clk 0:02:21.8]} 16. Qg4 {[%clk 0:02:30.2]} 16... Nc4 {[%clk
0:02:17.1]} 17. Bg5 {[%clk 0:02:19.5]} 17... Qb6 {[%clk 0:02:15.5]} 18. h4
{[%clk 0:01:52.2]} 18... h5 {[%clk 0:02:07.4]} 19. Qf4 {[%clk 0:01:52.1]} 19...
Nxb2 {[%clk 0:02:07.9]} 20. Re3 {[%clk 0:01:42.1]} 20... Nc4 {[%clk 0:01:22.9]}
21. Rg3 {[%clk 0:01:39.5]} 21... Na5 {[%clk 0:01:11.6]} 22. Rb1 {[%clk
0:01:15.1]} 22... Nxb3 {[%clk 0:01:09.2]} 23. Rbxb3 {[%clk 0:01:15.6]} 23... Qc7
{[%clk 0:01:03.9]} 24. Rbc3 {[%clk 0:01:09.1]} 24... Qd7 {[%clk 0:01:03.9]} 25.
Bf6 {[%clk 0:00:56.2]} 25... Rac8 {[%clk 0:01:02.3]} 26. Rcf3 {[%clk 0:00:52.6]}
26... Qc7 {[%clk 0:00:50.4]} 27. Re3 {[%clk 0:00:37.9]} 27... Qc1+ {[%clk
0:00:30.1]} 28. Kh2 {[%clk 0:00:37.5]} 28... Qd1 {[%clk 0:00:30.6]} 29. Rg5
{[%clk 0:00:08.3]} 29... Rc1 {[%clk 0:00:18.5]} 30. Kg3 {[%clk 0:00:05.6]} 30...
Rc4 {[%clk 0:00:16.4]} 31. Bxg7 {[%clk 0:00:02.9]} 31... Kxg7 {[%clk 0:00:16.7]}
32. Qf6+ {[%clk 0:00:03.5]} 32... Kh7 {[%clk 0:00:16.9]} 33. Rxg6 {[%clk
0:00:03.5]} 33... fxg6 {[%clk 0:00:13.7]} 34. Qxf8 {[%clk 0:00:03.6]} 34... Qg4+
{[%clk 0:00:13.9]} 35. Kh2 {[%clk 0:00:02.4]} 35... Rc7 {[%clk 0:00:09.1]} 0-1

[Event "*** Titled Tuesday Blitz"]
[Site "Chess.com"]
[Date "2020.05.26"]
[Round "8"]
[White "Grandelicious"]
[Black "vladislavkovalev"]
[Result "1-0"]
[WhiteElo "2810"]
[BlackElo "2878"]
[TimeControl "180+1"]
[EndTime "11:41:04 PDT"]
[Termination "Grandelicious won on time"]

1. Nf3 {[%clk 0:03:00.9]} 1... Nf6 {[%clk 0:03:00.5]} 2. g3 {[%clk 0:03:01.1]}
2... e6 {[%clk 0:03:01.1]} 3. Bg2 {[%clk 0:03:01.1]} 3... d5 {[%clk 0:03:02]} 4.
O-O {[%clk 0:03:01.6]} 4... Be7 {[%clk 0:03:01.9]} 5. c4 {[%clk 0:03:02.2]} 5...
O-O {[%clk 0:03:01.8]} 6. b3 {[%clk 0:03:02.6]} 6... b6 {[%clk 0:03:00.8]} 7. d4
{[%clk 0:02:58.6]} 7... Bb7 {[%clk 0:02:57.9]} 8. Nc3 {[%clk 0:02:58.6]} 8...
dxc4 {[%clk 0:02:56.4]} 9. bxc4 {[%clk 0:02:56.7]} 9... c5 {[%clk 0:02:57]} 10.
d5 {[%clk 0:02:41.6]} 10... exd5 {[%clk 0:02:01.3]} 11. Nh4 {[%clk 0:02:40.2]}
11... Ne8 {[%clk 0:01:44]} 12. Nf5 {[%clk 0:02:15.4]} 12... Bf6 {[%clk
0:01:08.8]} 13. Nxd5 {[%clk 0:02:11.3]} 13... Bxd5 {[%clk 0:01:02.9]} 14. Bxd5
{[%clk 0:01:57.5]} 14... Nc6 {[%clk 0:01:00.7]} 15. Rb1 {[%clk 0:01:11.9]} 15...
Rc8 {[%clk 0:00:53.3]} 16. Bf4 {[%clk 0:01:10.1]} 16... Nd4 {[%clk 0:00:49.9]}
17. Nxd4 {[%clk 0:00:31.2]} 17... cxd4 {[%clk 0:00:50.8]} 18. e3 {[%clk
0:00:30.8]} 18... g5 {[%clk 0:00:39.5]} 19. Qg4 {[%clk 0:00:20.4]} 19... Kh8
{[%clk 0:00:32.5]} 20. Be4 {[%clk 0:00:17.1]} 20... Ng7 {[%clk 0:00:11.6]} 21.
Qh3 {[%clk 0:00:08.8]} 21... h5 {[%clk 0:00:11.4]} 22. Bb7 {[%clk 0:00:03.5]}
22... Rc5 {[%clk 0:00:09.4]} 23. exd4 {[%clk 0:00:01.8]} 23... Bxd4 {[%clk
0:00:07.4]} 24. Bc1 {[%clk 0:00:02.5]} 24... g4 {[%clk 0:00:05.9]} 25. Qg2
{[%clk 0:00:03.2]} 25... Qf6 {[%clk 0:00:05.9]} 26. Ba3 {[%clk 0:00:03.6]} 26...
Re8 {[%clk 0:00:04.1]} 27. Bxc5 {[%clk 0:00:04.1]} 27... Bxc5 {[%clk 0:00:05]}
28. Bd5 {[%clk 0:00:04.5]} 28... Nf5 {[%clk 0:00:04.6]} 29. Rbe1 {[%clk
0:00:04.6]} 29... Re5 {[%clk 0:00:01.8]} 30. Rxe5 {[%clk 0:00:04.4]} 30... Qxe5
{[%clk 0:00:02.7]} 31. Qe4 {[%clk 0:00:05]} 31... Qf6 {[%clk 0:00:03.4]} 32. Qf4
{[%clk 0:00:04.7]} 32... Kg7 {[%clk 0:00:02.1]} 33. Re1 {[%clk 0:00:04.7]} 33...
Nd4 {[%clk 0:00:01.9]} 34. Qe5 {[%clk 0:00:04.5]} 1-0

[Event "*** Titled Tuesday Blitz"]
[Site "Chess.com"]
[Date "2020.05.26"]
[Round "8"]
[White "RobertoJBM"]
[Black "51616516516"]
[Result "1/2-1/2"]
[WhiteElo "2584"]
[BlackElo "2388"]
[TimeControl "180+1"]
[EndTime "11:41:04 PDT"]
[Termination "Game drawn by repetition"]

1. d4 {[%clk 0:03:00.9]} 1... Nf6 {[%clk 0:02:59.7]} 2. c4 {[%clk 0:02:48.6]}
2... g6 {[%clk 0:02:59.8]} 3. Nc3 {[%clk 0:02:48.6]} 3... Bg7 {[%clk 0:03:00.3]}
4. e4 {[%clk 0:02:48.8]} 4... d6 {[%clk 0:03:00.7]} 5. f3 {[%clk 0:02:49.3]}
5... c6 {[%clk 0:03:00.7]} 6. Be3 {[%clk 0:02:49.8]} 6... a6 {[%clk 0:03:01.1]}
7. Qd2 {[%clk 0:02:50.1]} 7... b5 {[%clk 0:03:01.4]} 8. Rc1 {[%clk 0:02:33.9]}
8... Nbd7 {[%clk 0:03:00.6]} 9. b3 {[%clk 0:02:33.2]} 9... Bb7 {[%clk 0:03:00]}
10. Nh3 {[%clk 0:02:31.8]} 10... O-O {[%clk 0:03:00.3]} 11. Nf2 {[%clk
0:02:31.6]} 11... e5 {[%clk 0:02:57.2]} 12. d5 {[%clk 0:02:31.2]} 12... cxd5
{[%clk 0:02:56.4]} 13. cxd5 {[%clk 0:02:30.7]} 13... Rc8 {[%clk 0:02:53.4]} 14.
b4 {[%clk 0:02:30.6]} 14... Nb6 {[%clk 0:02:51]} 15. a4 {[%clk 0:02:22.1]} 15...
Nxa4 {[%clk 0:02:08.4]} 16. Nxa4 {[%clk 0:02:20.8]} 16... bxa4 {[%clk
0:02:09.3]} 17. Bd3 {[%clk 0:02:18.8]} 17... Rxc1+ {[%clk 0:02:02.2]} 18. Qxc1
{[%clk 0:02:19.7]} 18... Nh5 {[%clk 0:01:55.6]} 19. O-O {[%clk 0:02:16.1]} 19...
Nf4 {[%clk 0:01:49.5]} 20. g3 {[%clk 0:01:36.4]} 20... Nxd3 {[%clk 0:01:44.9]}
21. Nxd3 {[%clk 0:01:37.3]} 21... Qd7 {[%clk 0:01:45.1]} 22. Qa3 {[%clk
0:01:34]} 22... Rc8 {[%clk 0:01:41.4]} 23. Rc1 {[%clk 0:01:34]} 23... Qb5 {[%clk
0:01:37.7]} 24. Kf2 {[%clk 0:01:31.2]} 24... f5 {[%clk 0:01:34.3]} 25. Nb2
{[%clk 0:01:25.8]} 25... fxe4 {[%clk 0:01:25.9]} 26. Rxc8+ {[%clk 0:01:25.4]}
26... Bxc8 {[%clk 0:01:26.8]} 27. fxe4 {[%clk 0:01:25.5]} 27... Bg4 {[%clk
0:01:21.4]} 28. Nd3 {[%clk 0:01:19.2]} 28... Bf6 {[%clk 0:01:13]} 29. Qc3 {[%clk
0:01:18.2]} 29... Bd8 {[%clk 0:01:07.2]} 30. Ke1 {[%clk 0:01:17.8]} 30... Bb6
{[%clk 0:01:02.1]} 31. Bxb6 {[%clk 0:01:16.6]} 31... Qxb6 {[%clk 0:01:01.8]} 32.
Nf2 {[%clk 0:01:17.5]} 32... Bd7 {[%clk 0:00:57.6]} 33. h4 {[%clk 0:01:08.9]}
33... Kg7 {[%clk 0:00:56.3]} 34. Nd1 {[%clk 0:01:07.6]} 34... Qg1+ {[%clk
0:00:54.8]} 35. Kd2 {[%clk 0:01:08.1]} 35... Bb5 {[%clk 0:00:37.9]} 36. Qc7+
{[%clk 0:01:03.5]} 36... Kh6 {[%clk 0:00:37.1]} 37. Qxd6 {[%clk 0:01:03]} 37...
Qd4+ {[%clk 0:00:36.4]} 38. Kc1 {[%clk 0:01:02.1]} 38... Qxe4 {[%clk 0:00:29.4]}
39. Qf8+ {[%clk 0:00:57]} 39... Kh5 {[%clk 0:00:28.8]} 40. d6 {[%clk 0:00:55.9]}
40... Qc4+ {[%clk 0:00:27.1]} 41. Kd2 {[%clk 0:00:55.6]} 41... Qd3+ {[%clk
0:00:22.2]} 42. Kc1 {[%clk 0:00:55.5]} 42... Qc4+ {[%clk 0:00:22.2]} 43. Kd2
{[%clk 0:00:55.9]} 43... Qxb4+ {[%clk 0:00:22.5]} 44. Kc1 {[%clk 0:00:56.5]}
44... Qc4+ {[%clk 0:00:19.5]} 45. Kd2 {[%clk 0:00:56.4]} 45... Qd3+ {[%clk
0:00:19.1]} 46. Kc1 {[%clk 0:00:57]} 46... a3 {[%clk 0:00:18.9]} 47. Qe7 {[%clk
0:00:55.9]} 47... Qc4+ {[%clk 0:00:11]} 48. Kd2 {[%clk 0:00:56.5]} 48... Qe2+
{[%clk 0:00:05.6]} 49. Kc1 {[%clk 0:00:56.8]} 49... Qc4+ {[%clk 0:00:04.4]} 50.
Kd2 {[%clk 0:00:56.8]} 50... Qd3+ {[%clk 0:00:03.3]} 51. Kc1 {[%clk 0:00:57.4]}
51... Kg4 {[%clk 0:00:02.6]} 52. Qxe5 {[%clk 0:00:55.3]} 52... Qc4+ {[%clk
0:00:02]} 53. Kd2 {[%clk 0:00:55.3]} 53... Qd3+ {[%clk 0:00:02.4]} 54. Kc1
{[%clk 0:00:55.7]} 54... Qc4+ {[%clk 0:00:02.6]} 55. Kd2 {[%clk 0:00:56.1]}
55... Qd3+ {[%clk 0:00:02.4]} 56. Kc1 {[%clk 0:00:54]} 1/2-1/2